Cogmind - Beta 17 --- EXPLORER MODE // 2026.06.27 @ 21:46:03 // Winter2019/RPGLIKE Player: Grimbling Result: Self-destructed Performance ------------- Evolutions (5) 2500 Regions Visited (15) 3000 Robots Destroyed (115) 575 Value Destroyed (5764) 5764 Prototype IDs (34) 680 Alien Tech Used (0) 0 Bonus (12752) 12752 TOTAL SCORE: 25271 Bonus ------- High Alert Combat Kills 254 Follower Combat Kills 206 Prayed to X0-1V1 5000 Major X0-1V1 Interference 6300 Entered Garrisons 200 Network Hubs Disabled 200 Registered with UFD 300 Met Optimus in HQ 500 Friendly Fire -208 Cogmind --------- Core Integrity 986/1000 Matter 750/750 Energy 675/675 System Corruption 16% Temperature Cool (-37) Movement Walking (75) Location -5/Upper Caves Parts ------- > --- POWER (3) -------- Enhanced Nuclear Core Light Fission Core (fused) Neutrino Core > --- PROPULSION (4) --- Improved VSS Leg Improved VSS Leg Improved VSS Leg Improved VSS Leg (fused) > --- UTILITY (9) ------ Improved Cryofiber Web Advanced Signal Interpreter Improved Terrain Scanner Improved Armor Integrity Analyzer Advanced Recoil Stabilizer Kinecellerator Centrium Medium Armor Plating (fused) High-powered Tractor Beam X0-1V1's Piety Tracker > --- WEAPON (5) ------- Heavy Gauss Cannon Heavy Gauss Cannon (fused) Heavy Gauss Cannon > --- INVENTORY (7) ---- Protomatter-76 Protomatter-74 Protomatter-55 Improved VSS Leg Centrium Medium Armor Plating KE Penetrator Advanced KE Penetrator Peak State ------------ > --- POWER ------------ Enhanced Nuclear Core Light Fission Core Neutrino Core > --- PROPULSION ------- Improved VSS Leg Improved VSS Leg Improved VSS Leg Improved VSS Leg Improved VSS Leg > --- UTILITY ---------- Improved Cryofiber Web Advanced Signal Interpreter Improved Terrain Scanner Improved Armor Integrity Analyzer Advanced Recoil Stabilizer Kinecellerator Centrium Medium Armor Plating High-powered Tractor Beam X0-1V1's Piety Tracker > --- WEAPON ----------- Advanced KE Penetrator Heavy Gauss Cannon Heavy Gauss Cannon Heavy Gauss Cannon > --- INVENTORY -------- Protomatter Recoil Stabilizer Centrium Medium Armor Plating KE Penetrator [Rating: 126] Favorites ----------- Power Deuterium Engine Engine Deuterium Engine Power Core Light Fission Core Propulsion Improved VSS Leg Treads Armored Treads Leg Improved VSS Leg Utility X0-1V1's Piety Tracker Device X0-1V1's Piety Tracker Processor Advanced Targeting Computer Hackware Improved System Shield Protection Light Armor Plating Weapon Coil Gun Ballistic Gun Coil Gun Ballistic Cannon Heavy Gauss Cannon Piercing Weapon Heavy Pick Build | -11 -10 -10 -8 -6 -6 -6 -6 -6 -6 -6 -5 -5 -5 -5 -5 ------- Run | Yrd Mat Sub Scr Fac Was Fac Ext Cet Arc Hub Fac Gar Fac Upp Upp Slots Evolved 17 | 6 2 1 4 3 . . 1 . . . . . . . . Power 2 | . 1 . 1 . . . . . . . . . . . . Propulsion 3 | 1 . . 1 1 . . . . . . . . . . . Utility 9 | 4 1 1 2 1 . . . . . . . . . . . Weapon 3 | 1 . . . 1 . . 1 . . . . . . . . Parts Attached 70 | 7 3 2 14 12 2 13 5 . 4 2 . 2 4 . . Power 11 | 1 . . 4 2 . 1 2 . 1 . . . . . . Engine 6 | 1 . . 2 1 . . 2 . . . . . . . . Core 5 | . . . 2 1 . 1 . . 1 . . . . . . Reactor . | . . . . . . . . . . . . . . . . Propulsion 15 | 2 . . 3 3 . 5 1 . . 1 . . . . . Treads . | . . . . . . . . . . . . . . . . Leg 15 | 2 . . 3 3 . 5 1 . . 1 . . . . . Wheel . | . . . . . . . . . . . . . . . . Hover . | . . . . . . . . . . . . . . . . Flight . | . . . . . . . . . . . . . . . . Utility 24 | 3 2 1 7 4 . 3 . . 1 1 . 1 1 . . Device 10 | 1 1 1 3 1 . 1 . . . 1 . . 1 . . Storage . | . . . . . . . . . . . . . . . . Processor 5 | . . . 3 . . 2 . . . . . . . . . Hackware 1 | . . . . 1 . . . . . . . . . . . Protection 8 | 2 1 . 1 2 . . . . 1 . . 1 . . . Artifact . | . . . . . . . . . . . . . . . . Weapon 20 | 1 1 1 . 3 2 4 2 . 2 . . 1 3 . . Energy Gun . | . . . . . . . . . . . . . . . . Energy Cannon . | . . . . . . . . . . . . . . . . Ballistic Gun 17 | 1 1 1 . 3 2 4 2 . 2 . . 1 . . . Ballistic Cannon 3 | . . . . . . . . . . . . . 3 . . Launcher . | . . . . . . . . . . . . . . . . Special Weapon . | . . . . . . . . . . . . . . . . Impact Weapon . | . . . . . . . . . . . . . . . . Slashing Weapon . | . . . . . . . . . . . . . . . . Piercing Weapon . | . . . . . . . . . . . . . . . . Special Melee Weapon . | . . . . . . . . . . . . . . . . Unidentified Prototypes 4 | . 1 . . . . 1 . . 2 . . . . . . Parts Lost . | . . . . . . . . . . . . . . . . Power . | . . . . . . . . . . . . . . . . Propulsion . | . . . . . . . . . . . . . . . . Utility . | . . . . . . . . . . . . . . . . Weapon . | . . . . . . . . . . . . . . . . Highest Loss Streak . | . . . . . . . . . . . . . . . . To Critical Strikes . | . . . . . . . . . . . . . . . . Average Backups 2 | . . 1 2 1 2 1 2 5 5 4 4 3 2 4 4 Power . | . . . . . . . . . . . . . . . . Propulsion . | . . . . . . . . . . . . . . 1 1 Utility 1 | . . . . . . . 1 3 4 4 4 3 1 1 1 Weapon 1 | . . . 2 . . . . 1 1 . . . 1 2 2 Tool/Special . | . . . . . . . . . . . . . . . . Unused Backups 24 | . . 1 2 7 . 10 1 . . 1 . 2 . . . Power 1 | . . . . . . 1 . . . . . . . . . Propulsion 4 | . . . . 1 . 3 . . . . . . . . . Utility 9 | . . . 1 . . 5 1 . . . . 2 . . . Weapon 9 | . . . 1 6 . 1 . . . 1 . . . . . Tool/Special 1 | . . 1 . . . . . . . . . . . . . Average Slot Usage (%) 91 | . 74 85 84 98 100 99 98 100 100 100 100 98 95 89 90 Engine 7 | . 9 7 11 14 10 9 4 4 1 . . . . . . Core 6 | . . . 3 . 5 5 9 9 11 14 14 14 14 14 14 Leg 18 | . 19 15 14 18 20 20 22 23 23 23 23 23 21 19 19 Device 25 | . 9 16 29 24 25 26 28 28 28 28 28 28 28 28 28 Processor 10 | . . 6 9 12 10 14 14 14 14 14 14 12 9 9 9 Protection 10 | . 21 23 14 10 10 5 4 4 4 4 4 4 4 4 4 Ballistic Gun 8 | . 12 15 . 14 15 14 13 14 14 14 14 14 3 . . Ballistic Cannon 1 | . . . . . . . . . . . . . 12 13 14 Peak Build Rating 126 | 7 22 29 58 81 84 98 105 107 115 117 117 118 126 115 115 Average Rating 71 | 4 7 24 41 76 81 90 103 106 110 116 117 116 121 114 115 On Entrance 79 | . 7 22 29 58 80 84 92 105 107 115 117 117 116 108 115 Avg Prop Armor Cover (%) 4 | . . . 5 10 . . . . . . . . . 2 . Naked Turns . | . . . . . . . . . . . . . . . . Heaviest Build 87 | 10 13 27 39 53 54 57 58 58 63 61 61 61 87 81 81 Greatest Support 95 | 30 30 30 66 82 82 90 95 95 95 95 95 95 95 85 85 Greatest Overweight (x) 1 | . . . . 1 . . . . . . . . 1 1 . Average Overweight (x) . | . . . . . . . . . . . . . . . . Largest Inventory Capacity 7 | 3 3 3 7 7 7 7 7 7 7 7 7 7 7 7 7 Average Capacity 5 | 2 3 3 4 7 7 7 7 7 7 7 7 7 7 7 7 Most Carried 7 | . 1 3 5 7 7 7 6 7 7 7 6 7 7 7 7 Average Carried 3 | . . 2 2 2 5 4 4 6 6 5 6 6 4 6 7 Final Capacity 7 | 3 3 3 7 7 7 7 7 7 7 7 7 7 7 7 7 Final Carried 7 | . . 3 5 3 7 3 4 7 5 6 6 7 7 7 7 Class Distribution -------------------- 45% | Wizard-Gunner 23% | Derelict-Mutant 14% | Hacker-Mutant 7% | Hacker-Skirmisher 4% | Derelict-Gunner 3% | Hacker-Gunner Dominant Class ---------------- Hacker-Mutant | -10/Materials Hacker-Skirmisher | -10/Subcaves Derelict-Mutant | -8/Scraptown Derelict-Gunner | -6/Factory Derelict-Gunner | -6/Waste Wizard-Gunner | -6/Factory Wizard-Gunner | -6/Extension Wizard-Gunner | -6/Cetus Wizard-Gunner | -6/Archives Wizard-Gunner | -6/Hub_04(d) Wizard-Gunner | -5/Factory Wizard-Gunner | -5/Garrison Wizard-Gunner | -5/Factory Wizard-Gunner | -5/Upper Caves Wizard-Gunner | -5/Upper Caves Resources | -11 -10 -10 -8 -6 -6 -6 -6 -6 -6 -6 -5 -5 -5 -5 -5 ----------- Run | Yrd Mat Sub Scr Fac Was Fac Ext Cet Arc Hub Fac Gar Fac Upp Upp Matter Collected 4718 | 206 305 320 224 260 248 448 849 181 298 217 . 618 379 165 . Remotely 3828 | . . . 181 260 248 448 833 181 298 217 . 618 379 165 . Salvage Created 5113 | . 120 175 . 105 . 554 1322 255 655 384 . 1013 329 201 . Parts 282 | . 15 15 . 9 . 27 69 13 30 16 . 66 12 10 . Haulers Intercepted 1 | . . . . . . . . . . . . . 1 . . Recyclers Shooed 6 | . 1 . . . . 3 2 . . . . . . . . Parts Field Recycled . | . . . . . . . . . . . . . . . . Retrieved Matter . | . . . . . . . . . . . . . . . . Parts Self-Destructed . | . . . . . . . . . . . . . . . . Prevented . | . . . . . . . . . . . . . . . . Parts Restored . | . . . . . . . . . . . . . . . . Kills | -11 -10 -10 -8 -6 -6 -6 -6 -6 -6 -6 -5 -5 -5 -5 -5 ------- Run | Yrd Mat Sub Scr Fac Was Fac Ext Cet Arc Hub Fac Gar Fac Upp Upp Combat Hostiles Destroyed 86 | . 6 5 . 2 . 8 13 4 4 5 . 29 5 5 . Guns 76 | . 6 5 . 2 . 8 13 4 4 5 . 29 . . . Cannons 10 | . . . . . . . . . . . . . 5 5 . Classes Destroyed 18 | . 2 2 . 1 . 4 5 . 1 1 . 1 1 . . Worker 5 | . . . . . . 2 2 . . . . . 1 . . Builder 3 | . . . . . . . 2 . . 1 . . . . . Tunneler 1 | . . . . . . . . . . 1 . . . . . Hauler 1 | . . . . . . . . . . . . . 1 . . Recycler 1 | . . . . . . . 1 . . . . . . . . Mechanic 1 | . . . . . . 1 . . . . . . . . . Operator 4 | . . . . . . . . . 4 . . . . . . Watcher 12 | . 2 . . . . 1 2 1 . 2 . 1 3 . . Swarmer 23 | . 6 2 . . . 2 . . . . . 13 . . . Grunt 15 | . . . . 2 . 1 2 . . 2 . 5 2 1 . Brawler 2 | . . . . . . . . . . . . 1 . 1 . Duelist 1 | . . . . . . 1 . . . . . . . . . Sentry 19 | . . 1 . . . 3 5 . 4 3 . 2 1 . . Specialist 5 | . . . . . . . 2 . . . . . . 3 . Hunter 3 | . . . . . . . 3 . . . . . . . . Programmer 8 | . . . . . . 1 . . . . . 5 2 . . Behemoth 1 | . . . . . . . 1 . . . . . . . . Cetus Guard 4 | . . . . . . . . 4 . . . . . . . Subdweller 2 | . . 2 . . . . . . . . . . . . . Decomposer 1 | . . . . . . . . . . . . . . 1 . Packrat 1 | . . . . . . . . . . . . . . 1 . Wasp 1 | . . . . . . . 1 . . . . . . . . Thug 3 | . . . . . . . . . . . . 3 . . . Best Kill Streak 12 | . 5 2 . 2 . 3 3 5 8 3 . 12 5 3 . Combat Bots Only 12 | . 3 2 . 2 . 2 2 4 4 3 . 12 2 3 . Max Kills in Single Turn 2 | . 1 1 . 1 . 1 2 2 2 2 . 2 1 2 . Gunslinging 1 | . . . . . . . . . . . . 1 . . . Exploded . | . . . . . . . . . . . . . . . . Melee . | . . . . . . . . . . . . . . . . Uniques/NPCs Destroyed . | . . . . . . . . . . . . . . . . Combat | -11 -10 -10 -8 -6 -6 -6 -6 -6 -6 -6 -5 -5 -5 -5 -5 -------- Run | Yrd Mat Sub Scr Fac Was Fac Ext Cet Arc Hub Fac Gar Fac Upp Upp Hostile Shots Fired 432 | . 18 20 . 6 . 67 178 16 7 32 . 72 12 4 . Missed 153 | . 6 6 . 3 . 29 51 7 3 18 . 24 4 2 . Hits 279 | . 12 14 . 3 . 38 127 9 4 14 . 48 8 2 . Melee 1 | . . . . . . 1 . . . . . . . . . Projectile 278 | . 12 14 . 3 . 37 127 9 4 14 . 48 8 2 . Critical Strikes 4 | . . . . . . . 1 3 . . . . . . . Part Disruptions 1 | . . . . . . . . . . . . . . 1 . Damage Taken 2552 | . 80 104 . 27 . 199 1217 129 51 137 . 447 147 14 . Core 1777 | . 51 66 . 17 . 139 846 96 32 93 . 326 104 7 . Absorbed by Shields . | . . . . . . . . . . . . . . . . Redirected to Core 1552 | . 45 40 . 17 . 125 764 72 19 93 . 272 98 7 . Redirected to Shielding 17 | . 4 8 . 5 . . . . . . . . . . . Ignored by Resistances 2363 | . 63 79 . 26 . 192 1192 133 46 107 . 399 117 9 . Core Remaining (%) 98 | 100 . . 100 . . . . . . 95 . . . . . Volleys Fired 246 | . 26 12 . 5 . 27 59 13 17 14 . 50 18 5 . Largest 3 | . 1 2 . 3 . 3 3 3 3 3 . 3 3 3 . Hottest 153 | . 20 43 . 87 . 95 96 96 96 98 . 101 153 153 . Shots Fired 645 | . 26 25 . 15 . 78 164 38 42 41 . 150 48 18 . Gun 579 | . 26 25 . 15 . 78 164 38 42 41 . 150 . . . Cannon 66 | . . . . . . . . . . . . . 48 18 . Launcher . | . . . . . . . . . . . . . . . . Special . | . . . . . . . . . . . . . . . . Kinetic 645 | . 26 25 . 15 . 78 164 38 42 41 . 150 48 18 . Thermal . | . . . . . . . . . . . . . . . . Explosive . | . . . . . . . . . . . . . . . . Electromagnetic . | . . . . . . . . . . . . . . . . Robot Hit Streak 50 | . 14 11 . 12 . 22 50 15 19 16 . 32 42 15 . Robot Miss Streak 2 | . 2 1 . 1 . 1 2 1 1 1 . 2 1 . . Penetration Max 2 | . . . . . . 1 2 1 2 1 . 2 . . . Secondary Targets 10 | . . . . . . . 2 1 1 . . 6 . . . Max Gunslinging Chain 1 | . . . . . . . 1 1 1 . . 1 . . . Shots Hit Robots 470 | . 22 18 . 12 . 62 131 24 31 30 . 105 23 12 . Core Hits 206 | . 10 8 . 5 . 20 56 12 20 11 . 46 10 8 . Critical Kills 31 | . 1 . . 1 . . 10 4 6 5 . 4 . . . Critical Parts Destroyed 37 | . . 1 . . . 3 15 4 4 1 . 9 . . . Critical Strikes 76 | . 1 1 . 1 . 3 25 9 10 6 . 14 6 . . Destroy 70 | . 1 1 . 1 . 3 25 9 10 6 . 14 . . . Blast 6 | . . . . . . . . . . . . . 6 . . Melee Attacks . | . . . . . . . . . . . . . . . . Impact . | . . . . . . . . . . . . . . . . Slashing . | . . . . . . . . . . . . . . . . Piercing . | . . . . . . . . . . . . . . . . Sneak Attacks . | . . . . . . . . . . . . . . . . Combat Hostiles . | . . . . . . . . . . . . . . . . Follow-up Attacks . | . . . . . . . . . . . . . . . . Damage Inflicted 13036 | . 273 225 . 265 . 1764 2317 371 727 1342 . 3894 1227 631 . Guns 10733 | . 273 225 . 265 . 1728 2315 371 686 976 . 3894 . . . Cannons 1791 | . . . . . . . . . . . . . 1160 631 . Explosions 417 | . . . . . . . . . . 350 . . 67 . . Melee . | . . . . . . . . . . . . . . . . Ramming 95 | . . . . . . 36 2 . 41 16 . . . . . Kinetic 12524 | . 273 225 . 265 . 1728 2315 371 686 976 . 3894 1160 631 . Thermal . | . . . . . . . . . . . . . . . . Explosive 67 | . . . . . . . . . . . . . 67 . . Electromagnetic 350 | . . . . . . . . . . 350 . . . . . Impact . | . . . . . . . . . . . . . . . . Slashing . | . . . . . . . . . . . . . . . . Piercing . | . . . . . . . . . . . . . . . . Highest Corruption 16 | . 2 2 2 . . 16 16 16 . 9 . . 2 16 16 Average Corruption 5 | . 1 2 2 . . 16 16 16 . 7 . . 1 2 16 Corruption Purged . | . . . . . . . . . . . . . . . . Corruption Blocked . | . . . . . . . . . . . . . . . . Effects 131 | . 2 4 42 . . 13 47 5 . 11 . . 4 3 . Message Errors 28 | . 1 . 15 . . 3 6 . . 2 . . 1 . . Matter Fused 32 | . 1 3 10 . . 3 10 1 . 3 . . 1 . . Heat Flow Errors 14 | . . . 5 . . 1 5 . . 2 . . 1 . . Energy Discharges 16 | . . . 5 . . 2 6 . . 2 . . . 1 . Data Loss (minor) 14 | . . . 4 . . 1 6 1 . . . . 1 1 . Data Loss (major) 10 | . . . 3 . . . 3 3 . 1 . . . . . Misfires 3 | . . 1 . . . 1 . . . . . . . 1 . Misdirections 2 | . . . . . . 1 1 . . . . . . . . Weapon Failures 12 | . . . . . . 1 10 . . 1 . . . . . Overload Shots . | . . . . . . . . . . . . . . . . Overflow Damage 205 | . . . . . . . . . . 57 . . 65 83 . Projectiles 116 | . . . . . . . . . . . . . 33 83 . Explosions 89 | . . . . . . . . . . 57 . . 32 . . Melee . | . . . . . . . . . . . . . . . . Knockbacks 11 | . . . . . . . . . 1 . . . 8 2 . Impact 1 | . . . . . . . . . 1 . . . . . . Kinetic 10 | . . . . . . . . . . . . . 8 2 . Secondary . | . . . . . . . . . . . . . . . . Self-Inflicted Damage 75 | . 10 . . . . . . . . 65 . . . . . Shots 2 | . 1 . . . . . . . . 1 . . . . . Rammed . | . . . . . . . . . . . . . . . . Targets Rammed 7 | . . . . . . 3 1 . 2 1 . . . . . Kicked 7 | . . . . . . 3 1 . 2 1 . . . . . Crushed . | . . . . . . . . . . . . . . . . Highest Temperature 360 | . . . 133 . . 60 360 . 169 42 . . . . . Average Temperature 89 | . . . 59 . . 40 107 . 109 24 . . . . . Received Heat Transfer 543 | . . 45 . 9 . 48 186 . 27 57 . 153 18 . . Siege Activations . | . . . . . . . . . . . . . . . . Martial Activations . | . . . . . . . . . . . . . . . . Shielding Activations . | . . . . . . . . . . . . . . . . Robots Disrupted . | . . . . . . . . . . . . . . . . Combat Hostiles . | . . . . . . . . . . . . . . . . Robots Corrupted . | . . . . . . . . . . . . . . . . Combat Hostiles . | . . . . . . . . . . . . . . . . Parts Fried 2 | . . . . . . . . . . 2 . . . . . Impact Corruptions . | . . . . . . . . . . . . . . . . Robots Melted . | . . . . . . . . . . . . . . . . Combat Hostiles . | . . . . . . . . . . . . . . . . Parts Melted 6 | . . . . . . 3 . . . 1 . 2 . . . Heat Transferred . | . . . . . . . . . . . . . . . . Parts Sabotaged . | . . . . . . . . . . . . . . . . Parts Stolen . | . . . . . . . . . . . . . . . . Parts Stripped . | . . . . . . . . . . . . . . . . Power Chain Reactions . | . . . . . . . . . . . . . . . . Alert | -11 -10 -10 -8 -6 -6 -6 -6 -6 -6 -6 -5 -5 -5 -5 -5 ------- Run | Yrd Mat Sub Scr Fac Was Fac Ext Cet Arc Hub Fac Gar Fac Upp Upp Maximum Alert Level 3 | . . . . . . . 1 . . 1 . 3 1 . . Low Security (%) 83 | 100 100 . . 100 100 100 77 100 100 99 100 14 71 . . Level 1 9 | . . . . . . . 22 . . . . 19 28 . . Level 2 2 | . . . . . . . . . . . . 18 . . . Level 3 5 | . . . . . . . . . . . . 47 . . . Level 4 . | . . . . . . . . . . . . . . . . Level 5 . | . . . . . . . . . . . . . . . . High Security . | . . . . . . . . . . . . . . . . Max Security . | . . . . . . . . . . . . . . . . Peak Influence 1009 | . 104 . . 51 . 50 291 42 31 209 69 1009 393 . . Initial 393 | . . . . . . . 10 . . . 69 28 393 . . Average 114 | . 14 . . 8 . 7 123 12 8 12 62 605 162 . . Influence Increases 3277 | . 210 90 . 82 . 269 647 96 114 344 . 981 334 110 . Destroy 0b10 Robot/C 1780 | . 120 60 . 40 . 160 280 80 80 100 . 620 140 100 . Destroy 0b10 Robot/NC 145 | . 10 . . . . 20 35 5 20 20 . 5 30 . . Destroy Leader 282 | . 34 . . 10 . 62 54 . . 34 . 40 38 10 . Allied During Kill 9 | . . . . . . . 1 6 1 . . . 1 . . Successful Hack 63 | . 23 . . 16 . 24 . . . . . . . . . Disable Machine 104 | . 8 . . . . . 8 4 12 48 . . 24 . . Anti-Garrison Action 150 | . . . . . . . . . . . . 150 . . . Destroy Structure 270 | . . . . 1 . 3 5 1 1 142 . 31 86 . . Lose Combat Pursuer 210 | . 15 30 . 15 . . . . . . . 135 15 . . Miscellaneous 264 | . . . . . . . 264 . . . . . . . . Influence Decreases 3277 | . 210 90 . 82 . 239 677 96 114 150 140 26 1316 137 . Entered New Map 802 | . . . . . . . 20 . . . 125 26 616 15 . Time Decay 1964 | . 210 90 . 70 . 239 602 76 65 85 15 . 390 122 . Lost Ally 89 | . . . . . . . . 20 49 . . . 20 . . Purge Threat 422 | . . . . 12 . . 55 . . 65 . . 290 . . Squads Dispatched 8 | . . . . 1 . 1 1 . . 2 . . 3 . . Investigation 1 | . . . . 1 . . . . . . . . . . . Extermination 2 | . . . . . . 1 . . . . . . 1 . . Reinforcement 5 | . . . . . . . 1 . . 2 . . 2 . . Assault . | . . . . . . . . . . . . . . . . Garrison . | . . . . . . . . . . . . . . . . Intercept . | . . . . . . . . . . . . . . . . Searches Triggered . | . . . . . . . . . . . . . . . . Construction Impeded 1 | . . . . . . . 1 . . . . . . . . Haulers Reinforced 2 | . . . . . . . . . . 1 . . 1 . . Active Scanning Responses . | . . . . . . . . . . . . . . . . Cargo Convoy Interrupts . | . . . . . . . . . . . . . . . . Stealth | -11 -10 -10 -8 -6 -6 -6 -6 -6 -6 -6 -5 -5 -5 -5 -5 --------- Run | Yrd Mat Sub Scr Fac Was Fac Ext Cet Arc Hub Fac Gar Fac Upp Upp Distress Signals 7 | . 2 . . . . . 3 1 . 1 . . . . . Communications Jammed . | . . . . . . . . . . . . . . . . Distress Signals . | . . . . . . . . . . . . . . . . Times Spotted 123 | . 14 6 . 3 1 10 17 5 13 6 . 31 12 5 . Peak Tracking Total 10 | . 3 4 . 3 1 2 3 5 2 3 . 10 3 3 . Tactical Retreats 7 | . 1 1 . 1 . . . . . . . 3 1 . . Traps | -11 -10 -10 -8 -6 -6 -6 -6 -6 -6 -6 -5 -5 -5 -5 -5 ------- Run | Yrd Mat Sub Scr Fac Was Fac Ext Cet Arc Hub Fac Gar Fac Upp Upp Traps Triggered 13 | . 4 . . 3 . 2 1 . . . . 2 1 . . Indirectly . | . . . . . . . . . . . . . . . . Trap Hack Attempts . | . . . . . . . . . . . . . . . . Triggered . | . . . . . . . . . . . . . . . . Disarmed 7 | . . . . . . . . . . . . . 7 . . Reprogrammed . | . . . . . . . . . . . . . . . . Reused . | . . . . . . . . . . . . . . . . Traps Extracted . | . . . . . . . . . . . . . . . . Installed . | . . . . . . . . . . . . . . . . Triggered . | . . . . . . . . . . . . . . . . Machines | -11 -10 -10 -8 -6 -6 -6 -6 -6 -6 -6 -5 -5 -5 -5 -5 ---------- Run | Yrd Mat Sub Scr Fac Was Fac Ext Cet Arc Hub Fac Gar Fac Upp Upp Machines Disabled 30 | . 2 . . . . . 2 2 3 12 . 3 6 . . Max in Single Turn 9 | . 2 . . . . . 1 1 1 9 . 1 2 . . Garrison Access 1 | . . . . . . 1 . . . . . . . . . Garrison Relay 3 | . . . . . . . . . . . . 3 . . . Phase Generator 1 | . . . . . . . . . . . . 1 . . . Network Hub 1 | . . . . . . . . . . 1 . . . . . Machines Repaired . | . . . . . . . . . . . . . . . . Machines Dismantled . | . . . . . . . . . . . . . . . . Machines Sabotaged . | . . . . . . . . . . . . . . . . Overloaded Fab Kills . | . . . . . . . . . . . . . . . . Hacking | -11 -10 -10 -8 -6 -6 -6 -6 -6 -6 -6 -5 -5 -5 -5 -5 --------- Run | Yrd Mat Sub Scr Fac Was Fac Ext Cet Arc Hub Fac Gar Fac Upp Upp Machines Accessed 51 | . 8 . 7 3 . 10 10 1 1 3 1 2 5 . . Terminals 37 | . 8 . . 2 . 7 10 1 . 3 . 2 4 . . Fabricators 2 | . . . . . . 2 . . . . . . . . . Repair Stations . | . . . . . . . . . . . . . . . . Recycling Units 1 | . . . . 1 . . . . . . . . . . . Scanalyzers 1 | . . . . . . . . . . . . . 1 . . Garrison Access 2 | . . . . . . 1 . . . . 1 . . . . Total Hacks 202 | . 28 . 36 7 . 38 30 4 1 19 1 4 34 . . Successful 158 | . 20 . 36 6 . 27 25 4 1 14 1 3 21 . . Failed 44 | . 8 . . 1 . 11 5 . . 5 . 1 13 . . Catastrophic 6 | . . . . 1 . 2 . . . . . . 3 . . Database Lockouts . | . . . . . . . . . . . . . . . . Manual 115 | . 24 . . 7 . 24 17 . . 15 . 2 26 . . Terminals 157 | . 28 . . 6 . 34 30 4 . 19 . 4 32 . . Fabricators 3 | . . . . . . 3 . . . . . . . . . Repair Stations . | . . . . . . . . . . . . . . . . Recycling Units 1 | . . . . 1 . . . . . . . . . . . Scanalyzers 2 | . . . . . . . . . . . . . 2 . . Garrison Access 2 | . . . . . . 1 . . . . 1 . . . . Terminal Hacks 98 | . 7 . 36 1 . 13 12 4 1 8 . 3 13 . . Record 40 | . . . 35 . . . . 4 1 . . . . . . Part Schematic 2 | . . . . . . 1 1 . . . . . . . . Robot Analysis 1 | . . . . . . . 1 . . . . . . . . Prototype ID Bank 6 | . 3 . . . . 1 . . . 2 . . . . . Open Door 5 | . . . . . . . 4 . . . . 1 . . . Open DSF 2 | . . . . . . 1 . . . . . . 1 . . Level Access Points 1 | . . . . . . 1 . . . . . . . . . Branch Access Points 1 | . . . . . . . . . . . . . 1 . . Emergency Access Points 4 | . . . . . . 1 . . . 2 . 1 . . . Machine Index 1 | . . . . . . 1 . . . . . . . . . Terminal Index 1 | . . . . . . . . . . . . . 1 . . Unreport Threat 12 | . 1 . . 1 . 3 2 . . 2 . . 3 . . Locate Traps 2 | . 1 . . . . 1 . . . . . . . . . Disarm Traps 4 | . . . . . . . . . . . . . 4 . . Patrol Status 1 | . 1 . . . . . . . . . . . . . . Recall Investigation 2 | . . . . . . 1 1 . . . . . . . . Recall Extermination 2 | . . . . . . 1 1 . . . . . . . . Recall Reinforcements 4 | . . . . . . . 1 . . 2 . . 1 . . Hauler Manifests 1 | . . . . . . . . . . . . . 1 . . Registered Prototypes 3 | . . . . . . 1 1 . . . . . 1 . . Zone Layout 1 | . 1 . . . . . . . . . . . . . . Garrison Registry 1 | . . . . . . . . . . . . 1 . . . Proto ID Catalog 1 | . . . 1 . . . . . . . . . . . . Fabricator Hacks 3 | . . . . . . 3 . . . . . . . . . Network Status 1 | . . . . . . 1 . . . . . . . . . Load Schematic 1 | . . . . . . 1 . . . . . . . . . Build 1 | . . . . . . 1 . . . . . . . . . Repair Station Hacks . | . . . . . . . . . . . . . . . . Recycling Unit Hacks . | . . . . . . . . . . . . . . . . Scanalyzer 2 | . . . . . . . . . . . . . 2 . . Retrieve Study 2 | . . . . . . . . . . . . . 2 . . Garrison Access Hacks 2 | . . . . . . 1 . . . . 1 . . . . Unlock Access 1 | . . . . . . . . . . . 1 . . . . Seal Access 1 | . . . . . . 1 . . . . . . . . . Unauthorized Hacks 53 | . 13 . . 5 . 10 13 . . 6 . . 6 . . Terminals 52 | . 13 . . 4 . 10 13 . . 6 . . 6 . . Botnet 26 | . 7 . . 2 . 5 6 . . 3 . . 3 . . Operators 1 | . . . . . . . 1 . . . . . . . . Skim 25 | . 6 . . 2 . 5 6 . . 3 . . 3 . . Fabricators . | . . . . . . . . . . . . . . . . Repair Stations . | . . . . . . . . . . . . . . . . Recycling Units 1 | . . . . 1 . . . . . . . . . . . Fedlink 1 | . . . . 1 . . . . . . . . . . . Scanalyzers . | . . . . . . . . . . . . . . . . Garrison Access . | . . . . . . . . . . . . . . . . Data Cores Recovered 1 | . . . . . . . . . . . . . 1 . . Used . | . . . . . . . . . . . . . . . . Hacking Detections 21 | . 6 . . 2 . 6 1 . . 2 . . 4 . . Full Trace Events 1 | . 1 . . . . . . . . . . . . . . Feedback Events . | . . . . . . . . . . . . . . . . Feedback Blocked . | . . . . . . . . . . . . . . . . Robot Schematics Acquired . | . . . . . . . . . . . . . . . . Robots Built . | . . . . . . . . . . . . . . . . Authchips . | . . . . . . . . . . . . . . . . Time . | . . . . . . . . . . . . . . . . Total Robot Build Rating . | . . . . . . . . . . . . . . . . Part Schematics Acquired 2 | . . . . . . 1 1 . . . . . . . . Parts Built 2 | . . . . . . 2 . . . . . . . . . Authchips . | . . . . . . . . . . . . . . . . Time 95 | . . . . . . 95 . . . . . . . . . Total Part Build Rating 10 | . . . . . . 10 . . . . . . . . . Part Studies Acquired 2 | . . . . . . . . . . . . . 2 . . Parts Repaired . | . . . . . . . . . . . . . . . . Time . | . . . . . . . . . . . . . . . . Parts Recycled . | . . . . . . . . . . . . . . . . Recycled Matter . | . . . . . . . . . . . . . . . . Retrieved Matter . | . . . . . . . . . . . . . . . . Retrieved Components . | . . . . . . . . . . . . . . . . Parts Scanalyzed . | . . . . . . . . . . . . . . . . Part Schematics Acquired . | . . . . . . . . . . . . . . . . Parts Damaged . | . . . . . . . . . . . . . . . . Bothacking | -11 -10 -10 -8 -6 -6 -6 -6 -6 -6 -6 -5 -5 -5 -5 -5 ------------ Run | Yrd Mat Sub Scr Fac Was Fac Ext Cet Arc Hub Fac Gar Fac Upp Upp Used RIF Installer . | . . . . . . . . . . . . . . . . Robots Hacked . | . . . . . . . . . . . . . . . . Non-combat . | . . . . . . . . . . . . . . . . Combat . | . . . . . . . . . . . . . . . . Robot Hacks Applied . | . . . . . . . . . . . . . . . . Relay Couplers Released 4 | . . . . . . . . . . . . 4 . . . Machine Destruction 4 | . . . . . . . . . . . . 4 . . . Fabnet Peak Effective % . | . . . . . . . . . . . . . . . . Robots Rewired . | . . . . . . . . . . . . . . . . Allies Hacked . | . . . . . . . . . . . . . . . . Hacks Repelled . | . . . . . . . . . . . . . . . . Allies | -11 -10 -10 -8 -6 -6 -6 -6 -6 -6 -6 -5 -5 -5 -5 -5 -------- Run | Yrd Mat Sub Scr Fac Was Fac Ext Cet Arc Hub Fac Gar Fac Upp Upp Total Allies 7 | . . . . . . . 6 . . . . 1 . . . Largest Group 5 | . . . . . . . 5 5 3 . . 1 1 . . Highest-Rated Group 87 | . . . . . . . 87 87 59 . . 51 51 . . Highest-Rated Ally 51 | . . . . . . . 25 25 25 . . 51 51 . . Initial UFD Resources 35 | . . . . 22 32 32 32 32 32 32 35 35 35 35 35 Total Orders . | . . . . . . . . . . . . . . . . Ally Attacks 71 | . . . . . . . 7 30 9 . . 2 23 . . Total Damage 983 | . . . . . . . 65 335 95 . . 36 452 . . Kills 6 | . . . . . . . 1 . . . . 2 3 . . Allies Corrupted . | . . . . . . . . . . . . . . . . Allies Melted . | . . . . . . . . . . . . . . . . X0-1V1 Amusement Gains 84 | . 4 . . 40 . . . . . 30 . . 10 . . Good Acts 19 | . . 1 . 2 . 3 1 4 . 4 . 3 1 . . Bad Acts 46 | . . 2 . 2 2 10 9 . 2 3 . 5 4 7 . Intel | -11 -10 -10 -8 -6 -6 -6 -6 -6 -6 -6 -5 -5 -5 -5 -5 ------- Run | Yrd Mat Sub Scr Fac Was Fac Ext Cet Arc Hub Fac Gar Fac Upp Upp Active Infowar (turns) 8427 | 73 763 423 2551 302 116 1095 957 194 174 322 34 586 551 285 1 Optics 137 | . . 73 64 . . . . . . . . . . . . Terrain 8427 | 73 763 423 2551 302 116 1095 957 194 174 322 34 586 551 285 1 Robot Analysis Total 1 | . . . . . . . 1 . . . . . . . . Derelict Logs Recovered 3 | . . 1 . . . . . . . . . . . 2 . Drone Launches . | . . . . . . . . . . . . . . . . Drone Recoveries . | . . . . . . . . . . . . . . . . Exploration | -11 -10 -10 -8 -6 -6 -6 -6 -6 -6 -6 -5 -5 -5 -5 -5 ------------- Run | Yrd Mat Sub Scr Fac Was Fac Ext Cet Arc Hub Fac Gar Fac Upp Upp Turns Passed 8448 | 88 763 423 2551 308 116 1095 957 194 174 322 34 586 551 285 1 Spaces Moved 6558 | 69 568 303 2032 196 89 807 708 130 127 254 38 441 459 336 1 Core 6 | 6 . . . . . . . . . . . . . . . Treads . | . . . . . . . . . . . . . . . . Legs 6552 | 63 568 303 2032 196 89 807 708 130 127 254 38 441 459 336 1 Wheels . | . . . . . . . . . . . . . . . . Hover . | . . . . . . . . . . . . . . . . Flight . | . . . . . . . . . . . . . . . . Fastest Speed 50 | 50 120 120 115 116 122 90 90 90 90 90 90 90 75 75 75 Average Speed 107 | 113 120 120 122 125 122 101 90 90 90 90 90 90 98 79 75 Slowest Speed 195 | 120 120 120 125 195 122 122 90 90 90 90 90 90 165 165 75 Overloaded Moves . | . . . . . . . . . . . . . . . . Propulsion Burnouts . | . . . . . . . . . . . . . . . . Robots Hopped . | . . . . . . . . . . . . . . . . Potential Cave-ins 3 | . . . . . . . . . . . . 3 . . . Cave-ins Triggered . | . . . . . . . . . . . . . . . . Exploration Rate (%) 47 | 5 97 22 94 6 67 25 85 79 94 36 2 65 24 62 3 Regions Visited 15 Branch Regions 8 Pre-discovered Areas 2 | . . 1 . . . . . . . . . . . 1 . Known Exits Taken 11 | 1 1 . 1 . . 1 1 1 1 1 1 . 1 1 . Unknown Exits Taken 1 | . . 1 . . . . . . . . . . . . . Scrap Searched 11 | . . . 11 . . . . . . . . . . . . Spaces Dug 13 | . . . . . . . . . . . . 4 9 . . Terrain Destroyed 297 | . . . . . . 3 9 . 2 210 . 30 37 6 . Melee . | . . . . . . . . . . . . . . . . Projectile 92 | . . . . . . 3 5 . 2 22 . 30 24 6 . AOE 201 | . . . . . . . . . . 188 . . 13 . . Terrain Rammed . | . . . . . . . . . . . . . . . . Walls Destroyed . | . . . . . . . . . . . . . . . . Machines Disabled . | . . . . . . . . . . . . . . . . Actions | -11 -10 -10 -8 -6 -6 -6 -6 -6 -6 -6 -5 -5 -5 -5 -5 --------- Run | Yrd Mat Sub Scr Fac Was Fac Ext Cet Arc Hub Fac Gar Fac Upp Upp Total 7498 | 75 622 339 2091 257 98 1043 899 179 156 316 37 521 521 343 1 Wait 327 | . 19 13 8 20 . 146 57 19 . 31 . 8 6 . . Move 6544 | 68 567 302 2031 196 88 806 707 129 126 253 37 440 458 335 1 Hop . | . . . . . . . . . . . . . . . . Pick Up 50 | . 1 3 11 2 5 6 8 4 . 1 . 6 2 1 . Fast Attach 42 | 7 4 1 8 8 . 7 3 1 1 1 . 1 . . . Attach 24 | . . . 3 4 2 3 1 1 3 1 . 1 4 1 . Detach 30 | . . . 5 4 1 8 2 2 2 1 . 1 4 . . Swap 17 | . . 1 4 4 . 3 1 . 1 1 . 1 1 . . Drop 88 | . 1 1 18 14 2 24 9 2 4 3 . 6 4 . . Fire 246 | . 26 12 . 5 . 27 59 13 17 14 . 50 18 5 . Melee . | . . . . . . . . . . . . . . . . Ram . | . . . . . . . . . . . . . . . . Kick 7 | . . . . . . 3 1 . 2 1 . . . . . Crush . | . . . . . . . . . . . . . . . . Escape Stasis 3 | . . . . . . . 1 . . . . 2 . . . Rewire 2 | . . . . . . . . . . . . 1 . 1 . Trap . | . . . . . . . . . . . . . . . . Miscellaneous 118 | . 4 6 3 . . 10 50 8 . 9 . 4 24 . . Route ------- -11/Scrapyard -10/Materials (discovered 5 exits: *Mat x3 / *Min / *Sub) -10/Subcaves (discovered 3 exits: *Mat / Rec / *Scr) -8/Scraptown (discovered 2 exits: *Fac x2) -6/Factory -6/Waste -6/Factory (discovered 5 exits: *Fac x4 / *Ext) -6/Extension (discovered 3 exits: *Fac x2 / *Cet) -6/Cetus (discovered 2 exits: Fac / *Arc) -6/Archives (discovered 3 exits: *Fac / *Hub x2) -6/Hub_04(d) (discovered 2 exits: *Fac x2) -5/Factory (discovered 3 exits: Upp x2 / Gar) -5/Garrison (discovered 3 exits: *Fac x3) -5/Factory (discovered 3 exits: *Fac / *Upp x2) -5/Upper Caves -5/Upper Caves (discovered 2 exits: Fac / War) History --------- Turn | Location | Event 10 | -11/Scrapyard | Identified exit to Materials 10 | -11/Scrapyard | Discovered exit to Materials (range 15) 29 | -11/Scrapyard | Upgraded with Propulsion slot (x1) 29 | -11/Scrapyard | Upgraded with Utility slot (x4) 29 | -11/Scrapyard | Upgraded with Weapon slot (x1) 89 | -11/Scrapyard | Entered Materials 193 | -10/Materials | Identified exit to Subcaves 193 | -10/Materials | Discovered exit to Subcaves (range 5) 202 | -10/Materials | Identified exit to Materials 202 | -10/Materials | Discovered exit to Materials (range 12) 318 | -10/Materials | Build established: Hacker-Mutant 440 | -10/Materials | Discovered exit to Materials (range 4) 579 | -10/Materials | Identified exit to Mines 579 | -10/Materials | Discovered exit to Mines (range 6) 607 | -10/Materials | Discovered exit to Materials (range 9) 789 | -10/Materials | Derelicts attacked the area 847 | -10/Materials | Prayed at D.C.S.S. Altar Unit 847 | -10/Materials | Reached level 2 847 | -10/Materials | Reached level 3 848 | -10/Materials | Upgraded with Power slot (x1) 848 | -10/Materials | Upgraded with Utility slot (x1) 852 | -10/Materials | Entered Subcaves 853 | -10/Subcaves | Approached by a straggling Scientist 857 | -10/Subcaves | Learned location of Zion (-7) 921 | -10/Subcaves | Reached level 4 928 | -10/Subcaves | Upgraded with Utility slot (x1) 948 | -10/Subcaves | Build established: Hacker-Skirmisher 955 | -10/Subcaves | Identified exit to Recycling 955 | -10/Subcaves | Discovered exit to Recycling (range 8) 963 | -10/Subcaves | A swath of the cavern ceiling suddenly collapsed 1154 | -10/Subcaves | Identified exit to Materials 1154 | -10/Subcaves | Discovered exit to Materials (range 11) 1259 | -10/Subcaves | Scientist uncovered a shortcut to Scraptown 1275 | -10/Subcaves | Entered Scraptown 1593 | -8/Scraptown | Build established: Hacker-Mutant 1594 | -8/Scraptown | Identified exit to Factory 1594 | -8/Scraptown | Discovered exit to Factory (range 5) 1608 | -8/Scraptown | Heard Great Nut preacher, LISTEN AND RECITE! 1707 | -8/Scraptown | Visited Cyclists 1755 | -8/Scraptown | Visited Comm Corps 1794 | -8/Scraptown | Visited Bundlers 1816 | -8/Scraptown | Upgraded with Utility slot (x1) 1904 | -8/Scraptown | Visited SPCMW 2137 | -8/Scraptown | Build established: Derelict-Mutant 2200 | -8/Scraptown | Visited UFD Registry 2217 | -8/Scraptown | Visited TADAMA 2244 | -8/Scraptown | Visited IN-MT5's Study 2624 | -8/Scraptown | Registered with UFD as "Boltmech" 2624 | -8/Scraptown | Reached level 5 2634 | -8/Scraptown | Upgraded with Power slot (x1) 2658 | -8/Scraptown | Visited Science Guys 2715 | -8/Scraptown | Visited Abandonware Association 2729 | -8/Scraptown | Learned abandonware demo "POISON.EXE" 2763 | -8/Scraptown | Visited Observation Area 3039 | -8/Scraptown | Visited DA-N13 Charitable Foundation 3045 | -8/Scraptown | Found DCF Scrap (30 items) 3079 | -8/Scraptown | Upgraded with Propulsion slot (x1) 3107 | -8/Scraptown | Visited Supply Room 3136 | -8/Scraptown | Visited Infowarlord's Domain 3177 | -8/Scraptown | Visited Derelict Rescue Squad 3195 | -8/Scraptown | Found DRS Beacon 3222 | -8/Scraptown | Visited A0-MCA Data Center 3229 | -8/Scraptown | Given a B- rating by A0-MCA 3232 | -8/Scraptown | Found A0-MCA's Component Scanner 3257 | -8/Scraptown | Upgraded with Utility slot (x1) 3261 | -8/Scraptown | Visited Modified Component R&D 3601 | -8/Scraptown | Discovered exit to Factory (range 10) 3732 | -8/Scraptown | Met Optimus 3732 | -8/Scraptown | Accepted into 0bPrime 3826 | -8/Scraptown | Entered Factory 3828 | -6/Factory | Reached level 6 3828 | -6/Factory | Reached level 7 3828 | -6/Factory | Reached level 8 3828 | -6/Factory | Reached level 9 3828 | -6/Factory | Reached level 10 3828 | -6/Factory | Reached level 11 3828 | -6/Factory | Reached level 12 3828 | -6/Factory | Reached level 13 3828 | -6/Factory | Upgraded with Propulsion slot (x1) 3828 | -6/Factory | Upgraded with Utility slot (x1) 3828 | -6/Factory | Upgraded with Weapon slot (x1) 3844 | -6/Factory | Loaded intel: 8 recycling unit locations 4122 | -6/Factory | Build established: Derelict-Gunner 4134 | -6/Factory | Sucked down chute 4134 | -6/Factory | Entered Waste 4134 | -6/Waste | The area was eerily silent 4224 | -6/Waste | A Compactor rumbled back to life 4224 | -6/Waste | Spotted C-40 Crusher 4238 | -6/Waste | Identified exit to Factory 4238 | -6/Waste | Discovered exit to Factory (range 11) 4250 | -6/Waste | Entered Factory 4331 | -6/Factory | Identified exit to Factory 4331 | -6/Factory | Discovered exit to Factory (range 16) 4471 | -6/Factory | Reached level 14 4675 | -6/Factory | Allied Derelicts emerged from ambush trap array 4778 | -6/Factory | Build established: Wizard-Gunner 5040 | -6/Factory | X0-1V1 redirected Transport squads to designated parking area 5049 | -6/Factory | Learned 2 Extension zone layouts 5105 | -6/Factory | System corruption reached 10% 5108 | -6/Factory | Fabricated Coil Gun (x2) 5122 | -6/Factory | Learned location of 1 exit from Upper Caves 5184 | -6/Factory | Learned Extension emergency access door positions 5234 | -6/Factory | Learned location of 1 exit from Cetus 5239 | -6/Factory | X0-1V1 announced a LAN party 5308 | -6/Factory | Learned 2 Extension zone layouts 5333 | -6/Factory | Identified exit to Extension 5333 | -6/Factory | Discovered exit to Extension (range 13) 5334 | -6/Factory | X0-1V1 mutated your Weapon slot to Utility slot 5345 | -6/Factory | Entered Extension 5347 | -6/Extension | Reached level 15 5347 | -6/Extension | Upgraded with Weapon slot (x1) 5351 | -6/Extension | X0-1V1 dreamt of freedom 5359 | -6/Extension | Rescued a captive Derelict 5359 | -6/Extension | Rescued a captive Derelict 5361 | -6/Extension | Rescued a captive Derelict 5364 | -6/Extension | Rescued a captive Derelict 5371 | -6/Extension | Rescued a captive Derelict 5376 | -6/Extension | Rescued a captive Derelict 5377 | -6/Extension | Rescued a captive Derelict 5378 | -6/Extension | X0-1V1 added 0b10 threat records associated with you (major) 5379 | -6/Extension | Rescued a captive Derelict 5395 | -6/Extension | Rescued a captive Derelict 5541 | -6/Extension | X0-1V1 mutated your Utility slot to Propulsion slot 5588 | -6/Extension | Discovered exit to Factory (range 19) 5588 | -6/Extension | Spotted B-75 Beast 5590 | -6/Extension | Extracted ID and sensor layout for unrecognized location from A7's data core 5607 | -6/Extension | Reached level 16 5623 | -6/Extension | X0-1V1 sent you into danger 5669 | -6/Extension | Destroyed B-75 Beast 5795 | -6/Extension | X0-1V1 vaporized surrounding terrain (radius 23) 5842 | -6/Extension | Disrupted transfer network 5955 | -6/Extension | Reached level 17 6104 | -6/Extension | X0-1V1 sent hostile X-67 Chaingunner (x3) 6144 | -6/Extension | X0-1V1 sent allied Wasp (x4) 6254 | -6/Extension | Discovered exit to Factory (range 10) 6254 | -6/Extension | Identified exit to Cetus 6254 | -6/Extension | Discovered exit to Cetus (range 6) 6278 | -6/Extension | Learned location of 2 exits from Upper Caves 6302 | -6/Extension | Entered Cetus 6302 | -6/Cetus | Accompanied by 5 allies 6311 | -6/Cetus | Spotted Cetus Guard 6312 | -6/Cetus | Spotted Cetus Guard 6313 | -6/Cetus | Spotted Cetus Guard 6313 | -6/Cetus | Spotted Cetus Guard 6317 | -6/Cetus | Destroyed Cetus Guard 6321 | -6/Cetus | Destroyed Cetus Guard 6330 | -6/Cetus | Destroyed Cetus Guard 6346 | -6/Cetus | Destroyed Cetus Guard 6408 | -6/Cetus | X0-1V1 opened Sealed Heavy Doors 6416 | -6/Cetus | Identified exit to Archives 6416 | -6/Cetus | X0-1V1 revealed exit location to -6/Archives 6496 | -6/Cetus | Entered Archives 6496 | -6/Archives | Accompanied by 3 allies 6519 | -6/Archives | Reached level 18 6552 | -6/Archives | Lost 3 allies 6558 | -6/Archives | Identified exit to Hub_04(d) 6558 | -6/Archives | Discovered exit to Hub_04(d) (range 22) 6569 | -6/Archives | Discovered exit to Factory (range 17) 6619 | -6/Archives | Discovered exit to Hub_04(d) (range 16) 6650 | -6/Archives | Unable to access archive contents 6670 | -6/Archives | Entered Hub_04(d) 6774 | -6/Hub_04(d) | X0-1V1 foreshadows a heat wave 6827 | -6/Hub_04(d) | X0-1V1 sent you into danger 6951 | -6/Hub_04(d) | X0-1V1 enhanced Transport squad support 6956 | -6/Hub_04(d) | Ambient heat levels rising (+10) 6980 | -6/Hub_04(d) | Discovered exit to Factory (range 7) 6987 | -6/Hub_04(d) | Discovered exit to Factory (range 22) 6987 | -6/Hub_04(d) | Network Hub disabled 6992 | -6/Hub_04(d) | Entered Factory 6993 | -5/Factory | Identified exit to Upper Caves 6994 | -5/Factory | Reached level 19 7025 | -5/Factory | Identified exit to Garrison 7026 | -5/Factory | Entered Garrison 7028 | -5/Garrison | Reached level 20 7070 | -5/Garrison | Triggered checkpoint 7147 | -5/Garrison | Garrison Relay disabled 7198 | -5/Garrison | Triggered checkpoint 7237 | -5/Garrison | Reached level 21 7277 | -5/Garrison | X0-1V1 sent hostile Thug (x3) 7303 | -5/Garrison | Destroyed 12 combat bots 7334 | -5/Garrison | Triggered checkpoint 7378 | -5/Garrison | Triggered checkpoint 7382 | -5/Garrison | X0-1V1 mutated your Utility slot to Weapon slot 7422 | -5/Garrison | Garrison Relay disabled 7438 | -5/Garrison | Identified exit to Factory 7438 | -5/Garrison | Discovered exit to Factory (range 23) 7438 | -5/Garrison | Discovered exit to Factory (range 53) 7438 | -5/Garrison | Discovered exit to Factory (range 24) 7452 | -5/Garrison | Triggered checkpoint 7452 | -5/Garrison | X0-1V1 activates XOMVISION 7459 | -5/Garrison | X0-1V1 destroyed Phase Generator 7459 | -5/Garrison | Phase Generator disabled 7474 | -5/Garrison | Rescued a captive Derelict 7506 | -5/Garrison | Triggered checkpoint 7574 | -5/Garrison | Triggered checkpoint 7578 | -5/Garrison | Garrison Relay disabled 7612 | -5/Garrison | Entered Factory 7612 | -5/Factory | Accompanied by 1 ally 7815 | -5/Factory | Reached level 22 7850 | -5/Factory | X0-1V1 sent hostile G-50 Soldier (x5) 7894 | -5/Factory | Identified exit to Factory 7894 | -5/Factory | Discovered exit to Factory (range 4) 7921 | -5/Factory | X0-1V1 mutated your Propulsion slot to Weapon slot 7976 | -5/Factory | X0-1V1 vaporized surrounding terrain (radius 18) 8163 | -5/Factory | Entered Upper Caves 8164 | -5/Upper Caves | Identified exit to Upper Caves 8249 | -5/Upper Caves | Encountered a Warlord checkpoint 8309 | -5/Upper Caves | Learned 4 Factory zone layouts 8337 | -5/Upper Caves | X0-1V1 vaporized surrounding terrain (radius 17) 8363 | -5/Upper Caves | X0-1V1 sent hostile X-72 Disruptor (x3) 8428 | -5/Upper Caves | Learned location of Warlord (-5) 8442 | -5/Upper Caves | System corruption reached 10% 8448 | -5/Upper Caves | Entered another Upper Caves area 8449 | -5/Upper Caves | Identified exit to Warlord 8449 | -5/Upper Caves | Self-destructed Last Messages --------------- 08403_ Acquired 18 matter. 08414_ X0-1V1: "Use it or lose it, I always say." 08414_ Lgt. Fission Core fused. 08414_ Hvy. Gauss Cannon+ fused. 08428_ Acquired derelict log, extracted data. World map updated: -5/Warlord. 08431_ Attempting to rewire G-50 Soldier. 08431_ G-50 Soldier is broken beyond repair. 08441_ X0-1V1 brushes you with a corrupting influence (+14 system corruption). 08443_ System corrupted: FCS attempts to trigger Hvy. Gauss Cannon+. 08443_ System corrupted: Hvy. Gauss Cannon+ misfires. 08443_ Slug penetrates G-50 Soldier. 08443_ Destroyed Hvy. Laser. 08443_ G-50 Soldier knocked back. 08446_ Acquired 3 matter. 08448_ Acquired 4 matter. LOCATION=UPPER CAVES GOAL=ESCAPE Loading 2 Upper Caves exits... Map ----- +----------------------------------------------------+ | ?????????????????????????????????????????????????? | | ?????????????????????????????????????????????????? | | ?????????????????????????????????????????????????? | | ?????????????????????????????????????????????????? | | ?????????????????????????????????????????????????? | | ?????????????????????????????????????????????????? | | ?????????????????????????????????????????????????? | | ?????????????????????????????????????????????????? | | ?????????????????????????????????????????????????? | | ?????????????????????????????????????????????????? | | ?????????????????????????????????????????????????? | | ?????????????????????????????#???????????????????? | | ??????????????????????????#??????????????????????? | | ??????????????? ?????????????????????????????????? | | ????????????????#????????????????????????????????? | | ???????????????????#??##? ?##????????????????????? | | ???????????? ?????????# #????????????#???????????? | | ?????????????????????? ##????????#?????????????? | | ??????????? ??#?????# ? #?#??????????#?????????? | | ??????????????#???????? #?????????#????????????? | | ???????????????????????? #??????????????????????? | | ???????????????#???????? ##?????????????????????? | | ?????????????????## ???## ##?#??????????????????? | | ????????????????## ## #????????#?#?????????? | | ????????????????# ##?#?????????????????? | | ???????Y????????# @ #??#???????#????????? | | ???????????#????# #???????????????????? | | ????????????????# ##??????????????????? | | ????????????????## ### ??????????????????? | | ?????????????????????# ????????????????? | | ???????????????????? ## ???????????????? | | ??????????????????? #?# #??????????????? | | ?????????????? ???### ## #?? #??????????????? | | ????????????????????# ####?? ##??????????????? | | ?????????????????#??# #??????? #???????????????? | | ????????????????????###??????? ???????????????? | | ??????????????????????????????? #?#????????????? | | ???g??????????? ?#? ??????????? ###??????????????? | | ??????????????????????????????#?#????????????????? | | ???g?????????????? ??????#???#???????????????????? | | ??g?g?????????????????##??#?#?#??????????????????? | | ?????????????????????????????????????????????????? | | ?????????????????????????????????????????????????? | | ?????????????????????????????????????????????????? | | ????